{"text_format":"1","workbook":"xlsx","n_sheets":2,"sheets":["Tabla 13 - COAI","Tabla 14 - Plan de Acción"],"not_rendered":{"charts":0,"images":1,"macros":0,"external_links":0,"defined_names":3,"comments":0,"pivot_tables":0},"unopened":[],"bounds":{"document_bytes":16777216,"sheet_cells":100000,"rows_first":2000,"rows_last":500,"rows_between":2000,"halvings":0,"cell_chars":16384,"cell_head_chars":4096},"cells_cut":0,"cells_raw":0,"read":"whole","date_system":"1900"}

{"sheet":"Tabla 13 - COAI","index":0,"n_rows":19,"n_cols":10,"rows_kept":19,"cut":false,"hidden":false,"merged":[[0,0,0,9],[1,0,1,9]]}
["                                                         DOCUMENTO DE TRABAJO - 2019"]
["TABLA 13: CONSOLIDACIÓN DEL COMPONENTE OPERATIVO ANUAL DE INVERSIONES EN SALUD - COAI \nVer documento de Lineamientos Metodologicos, Tecnicos y Operativos - Pag. 235"]
[1,2,3,4,5,6,7,8,9,10]
["Dimensión","Código Programa","Programa ","Componente","Código subprograma","Subprograma","Código proyecto (BPI)","Proyecto","Apropiación Anual \n(Miles de Pesos)","Fuente de Recursos"]
["1.1.1.2 Dimensión de vida saludable  y condiciones no transmisibles","1.1.6","Salud pública con calidad, garantía para el desarrollo humano y sostenible","Modos, Condiciones y Estilos de Vida Saludables","1.1.6.1","Salud pública con calidad, garantía para el desarrollo humano y sostenible","1.1.6.1.6"," Estrategias de Salud pública con garantía de derechos",17000000,"SGP-SALUD PUBLICA"]
["1.1.1.3 Dimensión convivencia social y salud mental","1.1.6","Salud pública con calidad, garantía para el desarrollo humano y sostenible","Prevención  y Atención Integral a Problemas y Trastornos Mentales y a Diferentes Formas de Violencia","1.1.6.1","Salud pública con calidad, garantía para el desarrollo humano y sostenible","1.1.6.1.7"," Estrategias de Salud pública con garantía de derechos",60000000,"SGP-SALUD PUBLICA"]
["1.1.1.4 Dimensión seguridad alimentaria y nutricional","1.1.6","Salud pública con calidad, garantía para el desarrollo humano y sostenible","Disponibilidad y Acceso a los Alimentos","1.1.6.1","Salud pública con calidad, garantía para el desarrollo humano y sostenible","1.1.6.1.5"," Estrategias de Salud pública con garantía de derechos",13000000,"SGP-SALUD PUBLICA"]
["1.1.1.5 Dimensión sexualidad derechos sexuales y reproductivos","1.1.6","Salud pública con calidad, garantía para el desarrollo humano y sostenible","Prevención y atención integral en salud sexual y reproductiva (SSR) desde un enfoque de derechos","1.1.6.1","Salud pública con calidad, garantía para el desarrollo humano y sostenible","1.1.6.1.4"," Estrategias de Salud pública con garantía de derechos",34000000,"SGP-SALUD PUBLICA"]
["1.1.1.6 Dimensión vida saludable y enfermedades transmisibles","1.1.6","PLAN DE INTERVENCIONES COLECTIVAS","Enfermedades Emergentes, Re - emergentes y desatendidas -  trasmitidas por contacto directo o vía aérea","1.1.6.1","Salud pública con calidad, garantía para el desarrollo humano y sostenible","1.1.6.1.1"," Estrategias de Salud pública con garantía de derechos",6500000,"SGP-SALUD PUBLICA"]
["1.1.1.6 Dimensión vida saludable y enfermedades transmisibles","1.1.6","PLAN DE INTERVENCIONES COLECTIVAS","Enfermedades inmunoprevenibles ","1.1.6.1","Salud pública con calidad, garantía para el desarrollo humano y sostenible","1.1.6.1"," Estrategias de Salud pública con garantía de derechos",15000000,"SGP-SALUD PUBLICA"]
["1.1.1.6 Dimensión vida saludable y enfermedades transmisibles","1.1.6","PLAN DE INTERVENCIONES COLECTIVAS","Enfermedades endemo-epidemicas.","1.1.6.1","Salud pública con calidad, garantía para el desarrollo humano y sostenible","1.1.6.1"," Estrategias de Salud pública con garantía de derechos",6000000,"SGP-SALUD PUBLICA"]
["1.1.1.6 Dimensión salud ambiental","1.1.6","Salud pública con calidad, garantía para el desarrollo humano y sostenible","Habitat saludable","1.1.6.1","Salud pública con calidad, garantía para el desarrollo humano y sostenible","1.1.6.1"," Estrategias de Salud pública con garantía de derechos",11400000,"SGP-SALUD PUBLICA"]
["1.1.1.7 Dimensión salud pública en emergencias y desastres","1.1.6","Salud pública con calidad, garantía para el desarrollo humano y sostenible","Respuesta en salud ante situaciones de urgencia, emergencias  en salud publica y desastres.","1.1.6.1","Salud pública con calidad, garantía para el desarrollo humano y sostenible","1.1.6.1"," Estrategias de Salud pública con garantía de derechos",6000000,"SGP-SALUD PUBLICA"]
["1.1.1.8 Dimensión salud y ámbito laboral","1.1.6","Salud pública con calidad, garantía para el desarrollo humano y sostenible","Seguridad y Salud en el Trabajo","1.1.6.1","Salud pública con calidad, garantía para el desarrollo humano y sostenible","2.1.4.1.1"," Estrategias de Salud pública con garantía de derechos",8000000,"SGP-SALUD PUBLICA"]
["1.1.1.9 Dimensión transversal gestión diferencial de poblaciones vulnerables","1.1.6","PLAN DE INTERVENCIONES COLECTIVAS","Desarrollo integral de las niñas, niños y adolescentes","1.1.7.1","Mejorar el goce efectivo del derecho a la salud de las poblaciones vulnerables","1.1.7.1"," Estrategias de Salud pública con garantía de derechos",18656943.399999999,"SGP-SALUD PUBLICA"]
["1.1.1.10 Dimensión fortalecimiento de la autoridad sanitaria para la gestión en salud","1.1.6","Salud pública con calidad, garantía para el desarrollo humano y sostenible","Fortalecimiento de la autoridad sanitaria","1.1.6.1","Salud pública con calidad, garantía para el desarrollo humano y sostenible","1.1.7.1"," Estrategias de Fortalecimiento de la autoridad sanitaria para la gestión integral de la salud",130371295.59999999,"SGP-SALUD PUBLICA"]
["1.1.1.10 Dimensión fortalecimiento de la autoridad sanitaria para la gestión en salud","1.1.5","Sonsón progresa por el aseguramiento y acceso universal en salud","Fortalecimiento de la autoridad sanitaria","1.1.5.1","Sonsón progresa por el aseguramiento y acceso universal en salud","1.1.5.1.1"," Estrategias de Fortalecimiento de la autoridad sanitaria para la gestión integral de la salud",20843384547,"SGP ASEGURAMIENTO-FOSYGA-COLJUEGOS-RENTAS CEDIDAS-FONPET"]
["1.1.1.10 Dimensión fortalecimiento de la autoridad sanitaria para la gestión en salud","1.1.5","Sonsón progresa por el aseguramiento y acceso universal en salud","Fortalecimiento de la autoridad sanitaria","1.1.5.1","Sonsón progresa por el aseguramiento y acceso universal en salud","1.1.5.1.1"," Estrategias de Fortalecimiento de la autoridad sanitaria para la gestión integral de la salud",64423719.5,"COLJUEGOS 25% funcionamiento"]
["1.1.1.10 Dimensión fortalecimiento de la autoridad sanitaria para la gestión en salud","1.1.5","Sonsón progresa por el aseguramiento y acceso universal en salud","Fortalecimiento de la autoridad sanitaria","1.1.5.1","Sonsón progresa por el aseguramiento y acceso universal en salud","1.1.5.1.1"," Estrategias de Fortalecimiento de la autoridad sanitaria para la gestión integral de la salud",530367676,"SGP Prestación de servicios y subsidio a la oferta                                                      "]

{"sheet":"Tabla 14 - Plan de Acción","index":1,"n_rows":38,"n_cols":34,"rows_kept":38,"cut":false,"hidden":false,"merged":[[3,10,4,10],[3,31,3,33],[3,12,4,12],[3,13,3,17],[3,18,3,19],[3,20,3,22],[3,23,3,25],[3,7,4,7],[0,0,0,33],[1,0,1,33],[2,18,2,19],[2,23,2,25],[3,0,4,0],[3,1,4,1],[3,2,4,2],[3,3,4,3],[3,4,4,4],[3,5,4,5],[3,26,3,30],[3,6,4,6],[3,9,4,9],[3,8,4,8],[3,11,4,11]]}
["                                                                                                             DOCUMENTO DE TRABAJO - 2019"]
["TABLA 14: ELABORACIÓN Y CONSOLIDACIÓN DEL PLAN DE ACCIÓN EN SALUD (PAS)\nVer documento de Lineamientos Metodologicos, Tecnicos y Operativos - Pag. 243"]
[1,2,3,4,5,6,7,8,9,10,11,12,13,14,15,16,17,18,19,null,20,21,22,23,null,null,24,25,26,27,28,29,30,31]
["Dimensión","Código Programa","Programa ","Componente","Código subprograma","Subprograma","Código proyecto (BPI)","Proyecto","Meta de Producto Anual","Estrategia de PTS","Actividades ","Cantidad Programada","Unidad de Medida","Actividades programadas por trimestre",null,null,null,null,"Linea de Acción",null,"Recursos programados",null,null,"Responsables del cumplimiento",null,null,"Actividades ejecutadas por trimestre",null,null,null,null,"Recursos ejecutados"]
[null,null,null,null,null,null,null,null,null,null,null,null,null,"I","II","III","IV","Total","Linea Operativa","Categoria Linea Operativa","Código Rubro Presupuestal","Fuente de Financiación","Total recursos programados \n(Miles de Pesos)","Dependencia ","Cargo ","Nombres y Apellidos","I","II","III","IV","Total","Código Rubro Presupuestal","Fuente de Financiación","Total recursos ejecutados \n(Miles de Pesos)"]
["1.1.1.2 Dimensión de vida saludable  y condiciones no transmisibles","1.1.6","Salud pública con calidad, garantía para el desarrollo humano y sostenible","Modos, Condiciones y Estilos de Vida Saludables","1.1.6.1","Salud pública con calidad, garantía para el desarrollo humano y sostenible","1.1.6.1.6"," Estrategias de Salud pública con garantía de derechos","Disminuir a 231,09 la tasa ajustada de mortalidad por enfermedades del sistema circulatorio por cada 100.000 habitantes.","Propiciar entornos cotidianos saludables y promover el acceso y abordaje efectivo de las Enfermedades No Transmisibles (ENT)","Jornadas de salud: Alimentar la mente para crecer y vivir sanos-FAO",50,"Numero de jornadas",12,12,12,14,{"$f":"N6+O6+P6+Q6","v":50},"PROMOCIÓN DE LA SALUD","PLAN DE INTERVENCIONES COLECTIVAS","2.3.5.1.2.00","SGP-SALUD PUBLICA",10000000,"SECRETARIA DE SALUD","SECRETARIA DE SALUD","GLORIA PATRICIA GIL BLANDON"]
["1.1.1.2 Dimensión de vida saludable  y condiciones no transmisibles","1.1.6","Salud pública con calidad, garantía para el desarrollo humano y sostenible","Modos, Condiciones y Estilos de Vida Saludables","1.1.6.1","Salud pública con calidad, garantía para el desarrollo humano y sostenible","1.1.6.1.6"," Estrategias de Salud pública con garantía de derechos","Disminuir a 231,09 la tasa ajustada de mortalidad por enfermedades del sistema circulatorio por cada 100.000 habitantes.","Propiciar entornos cotidianos saludables y promover el acceso y abordaje efectivo de las Enfermedades No Transmisibles (ENT)","Articulación Institucional e Intersectorial para la realización de jornadas deprotivas ",50,"Numnero de jornadas",12,12,12,14,50,"PROMOCIÓN DE LA SALUD","PLAN DE INTERVENCIONES COLECTIVAS","2.3.5.1.2.00","SGP-SALUD PUBLICA",1000000,"SECRETARIA DE SALUD","SECRETARIA DE SALUD","GLORIA PATRICIA GIL BLANDON"]
["1.1.1.2 Dimensión de vida saludable  y condiciones no transmisibles","1.1.6","Salud pública con calidad, garantía para el desarrollo humano y sostenible","Modos, Condiciones y Estilos de Vida Saludables","1.1.6.1","Salud pública con calidad, garantía para el desarrollo humano y sostenible","1.1.6.1.6"," Estrategias de Salud pública con garantía de derechos","Disminuir a 231,09 la tasa ajustada de mortalidad por enfermedades del sistema circulatorio por cada 100.000 habitantes.","Propiciar entornos cotidianos saludables y promover el acceso y abordaje efectivo de las Enfermedades No Transmisibles (ENT)","Estrategia de cominicacion y publicidad con enfoque de prevencion de consumo de SPA y adecuados habitos de vida saludable",50,"Numero de estrategias",1,0,0,0,1,"PROMOCIÓN DE LA SALUD","PLAN DE INTERVENCIONES COLECTIVAS","2.3.5.1.2.00","SGP-SALUD PUBLICA",3000000,"SECRETARIA DE SALUD","SECRETARIA DE SALUD","GLORIA PATRICIA GIL BLANDON"]
["1.1.1.2 Dimensión de vida saludable  y condiciones no transmisibles","1.1.6","Salud pública con calidad, garantía para el desarrollo humano y sostenible","Modos, condiciones y estilos de vida saludables","1.1.6.1","Salud pública con calidad, garantía para el desarrollo humano y sostenible","1.1.6.1.6"," Estrategias de Salud pública con garantía de derechos","Disminuir a 231,09 la tasa ajustada de mortalidad por enfermedades del sistema circulatorio por cada 100.000 habitantes.","Propiciar entornos cotidianos saludables y promover el acceso y abordaje efectivo de las Enfermedades No Transmisibles (ENT)","Seguimientio al cumplimiento  de la Estrategia Nacional Para La Reduccion del Consumo De Sal/Sodio En Colombia 2012 - 2021 a los establecimientos publicos zona urbana y rural\n",4,"Numero de seguimiento",1,1,1,1,{"$f":"N9+O9+P9+Q9","v":4},"PROMOCIÓN DE LA SALUD","PLAN DE INTERVENCIONES COLECTIVAS","2.3.5.1.2.00","SGP-SALUD PUBLICA",3000000,"SECRETARIA DE SALUD","SECRETARIA DE SALUD","GLORIA PATRICIA GIL BLANDON"]
["1.1.1.3 Dimensión convivencia social y salud mental","1.1.6","Salud pública con calidad, garantía para el desarrollo humano y sostenible","Prevención  y Atención Integral a Problemas y Trastornos Mentales y a Diferentes Formas de Violencia","1.1.6.1","Salud pública con calidad, garantía para el desarrollo humano y sostenible","1.1.6.1.7"," Estrategias de Salud pública con garantía de derechos","Disminuir a 4,06 la tasa ajustada de mortalidad por lesiones auto inflingidas intencionalmente por cada 100.000 habitantes.","Promover la salud mental y la convivencia, la transformación de problemas y trastornos que contribuyen al bienestar y desarrollo","Actualización de la poliotica publica de salud mental",1,"Numero de actualizaciones",1,0,0,0,{"$f":"N10+O10+P10+Q10","v":1},"PROMOCIÓN DE LA SALUD","PLAN DE INTERVENCIONES COLECTIVAS","2.3.5.1.2.00","SGP-SALUD PUBLICA",0,"SECRETARIA DE SALUD","SECRETARIA DE SALUD","GLORIA PATRICIA GIL BLANDON"]
["1.1.1.3 Dimensión convivencia social y salud mental","1.1.6","Salud pública con calidad, garantía para el desarrollo humano y sostenible","Prevención  y Atención Integral a Problemas y Trastornos Mentales y a Diferentes Formas de Violencia","1.1.6.1","Salud pública con calidad, garantía para el desarrollo humano y sostenible","1.1.6.1.7"," Estrategias de Salud pública con garantía de derechos","Disminuir a 4,06 la tasa ajustada de mortalidad por lesiones auto inflingidas intencionalmente por cada 100.000 habitantes.","Promover la salud mental y la convivencia, la transformación de problemas y trastornos que contribuyen al bienestar y desarrollo","Estrategia para la Prevención  y Atención Integral a Problemas y Trastornos Mentales y a Diferentes Formas de Violencia",1,"Numero de actualizaciones",1,0,0,0,{"$f":"N11+O11+P11+Q11","v":1},"PROMOCIÓN DE LA SALUD","PLAN DE INTERVENCIONES COLECTIVAS","2.3.5.1.2.00","SGP-SALUD PUBLICA",60000000,"SECRETARIA DE SALUD","SECRETARIA DE SALUD","GLORIA PATRICIA GIL BLANDON"]
["1.1.1.4 Dimensión seguridad alimentaria y nutricional","1.1.6","Salud pública con calidad, garantía para el desarrollo humano y sostenible","Disponibilidad y Acceso a los Alimentos","1.1.6.1","Salud pública con calidad, garantía para el desarrollo humano y sostenible","1.1.6.1.5"," Estrategias de Salud pública con garantía de derechos","Mantener en 0 la tasa de mortalidad por desnutrición en menores de 5 años por cada 100.000 menores de 5 años","Garantizar el derecho a la alimentación sana con equidad en las diferentesetapas del curso de vida","Implementación de estrategias intersectorial e interistitucional con las secretaria de Educación y MANA para la adecuada alimentacioón de la póblacion estudiantil",1,"Numero de estrategias",1,0,0,0,{"$f":"N12+O12+P12+Q12","v":1},"PROMOCIÓN DE LA SALUD","PLAN DE INTERVENCIONES COLECTIVAS","2.3.5.1.2.00","SGP-SALUD PUBLICA",4000000,"SECRETARIA DE SALUD","SECRETARIA DE SALUD","GLORIA PATRICIA GIL BLANDON"]
["1.1.1.4 Dimensión seguridad alimentaria y nutricional","1.1.6","Salud pública con calidad, garantía para el desarrollo humano y sostenible","Disponibilidad y Acceso a los Alimentos","1.1.6.1","Salud pública con calidad, garantía para el desarrollo humano y sostenible","1.1.6.1.5"," Estrategias de Salud pública con garantía de derechos","Mantener en 0 la tasa de mortalidad por desnutrición en menores de 5 años por cada 100.000 menores de 5 años","Garantizar el derecho a la alimentación sana con equidad en las diferentesetapas del curso de vida","Cuatro jornadas de movilización materna para la promoción de los adecuados cuidados alimenticios durante el embarazo y la prevención del bajo peso al nacer",1,"Numero de jornadas",1,1,1,1,4,"PROMOCIÓN DE LA SALUD","PLAN DE INTERVENCIONES COLECTIVAS","2.3.5.1.2.00","SGP-SALUD PUBLICA",4000000,"SECRETARIA DE SALUD","SECRETARIA DE SALUD","GLORIA PATRICIA GIL BLANDON"]
["1.1.1.4 Dimensión seguridad alimentaria y nutricional","1.1.6","Salud pública con calidad, garantía para el desarrollo humano y sostenible","Disponibilidad y Acceso a los Alimentos","1.1.6.1","Salud pública con calidad, garantía para el desarrollo humano y sostenible","1.1.6.1.5"," Estrategias de Salud pública con garantía de derechos","Mantener en 0 la tasa de mortalidad por desnutrición en menores de 5 años por cada 100.000 menores de 5 años","Garantizar el derecho a la alimentación sana con equidad en las diferentesetapas del curso de vida","Movilización academica semana de la lactancia materna (foro)",1,"Numero de jornadas",0,0,1,0,1,"PROMOCIÓN DE LA SALUD","PLAN DE INTERVENCIONES COLECTIVAS","2.3.5.1.2.00","SGP-SALUD PUBLICA",2000000,"SECRETARIA DE SALUD","SECRETARIA DE SALUD","GLORIA PATRICIA GIL BLANDON"]
["1.1.1.4 Dimensión seguridad alimentaria y nutricional","1.1.6","Salud pública con calidad, garantía para el desarrollo humano y sostenible","Disponibilidad y Acceso a los Alimentos","1.1.6.1","Salud pública con calidad, garantía para el desarrollo humano y sostenible","1.1.6.1.5"," Estrategias de Salud pública con garantía de derechos","Mantener en 0 la tasa de mortalidad por desnutrición en menores de 5 años por cada 100.000 menores de 5 años","Garantizar el derecho a la alimentación sana con equidad en las diferentesetapas del curso de vida","Implementación de estrategias para la prevención de la obesidad y mal nutrición",1,"Numero de jornadas",1,0,0,0,{"$f":"N15+O15+P15+Q15","v":1},"PROMOCIÓN DE LA SALUD","PLAN DE INTERVENCIONES COLECTIVAS","2.3.5.1.2.00","SGP-SALUD PUBLICA",3000000,"SECRETARIA DE SALUD","SECRETARIA DE SALUD","GLORIA PATRICIA GIL BLANDON"]
["1.1.1.5 Dimensión sexualidad derechos sexuales y reproductivos","1.1.6","Salud pública con calidad, garantía para el desarrollo humano y sostenible","Prevención y atención integral en salud sexual y reproductiva (SSR) desde un enfoque de derechos","1.1.6.1","Salud pública con calidad, garantía para el desarrollo humano y sostenible","1.1.6.1.4"," Estrategias de Salud pública con garantía de derechos","Disminuir a 22,64 nacidos vivos la tasa de fecundidad en mujeres de 10 a 19 años por cada 1.000 mujeres de 10 a 19 años.","Garantizar condiciones que incidan en el ejercicio pleno y autónomo de losderechos sexuales y reproductivos","Implementación de la estrategia  semana andina \"Prevención del embarazo en adolescentes\" en articulación con mesa de infancia y secretaria de inclusión social",1,"Numero de estrategias",1,0,0,0,{"$f":"N16+O16+P16+Q16","v":1},"PROMOCIÓN DE LA SALUD","PLAN DE INTERVENCIONES COLECTIVAS","2.3.5.1.2.00","SGP-SALUD PUBLICA",15000000,"SECRETARIA DE SALUD","SECRETARIA DE SALUD","GLORIA PATRICIA GIL BLANDON"]
["1.1.1.5 Dimensión sexualidad derechos sexuales y reproductivos","1.1.6","Salud pública con calidad, garantía para el desarrollo humano y sostenible","Prevención y atención integral en salud sexual y reproductiva (SSR) desde un enfoque de derechos","1.1.6.1","Salud pública con calidad, garantía para el desarrollo humano y sostenible","1.1.6.1.4"," Estrategias de Salud pública con garantía de derechos","Disminuir a 22,64 nacidos vivos la tasa de fecundidad en mujeres de 10 a 19 años por cada 1.000 mujeres de 10 a 19 años.","Garantizar condiciones que incidan en el ejercicio pleno y autónomo de losderechos sexuales y reproductivos","Implementacion de estrategias  para la Prevención y atención integral en salud sexual y reproductiva desde un enfoque de derechos (Comunicación y publicidad)",1,"Numero de estrategias",1,0,0,0,1,"PROMOCIÓN DE LA SALUD","PLAN DE INTERVENCIONES COLECTIVAS","2.3.5.1.2.00","SGP-SALUD PUBLICA",3000000,"SECRETARIA DE SALUD","SECRETARIA DE SALUD","GLORIA PATRICIA GIL BLANDON"]
["1.1.1.5 Dimensión sexualidad derechos sexuales y reproductivos","1.1.6","Salud pública con calidad, garantía para el desarrollo humano y sostenible","Prevención y atención integral en salud sexual y reproductiva (SSR) desde un enfoque de derechos","1.1.6.1","Salud pública con calidad, garantía para el desarrollo humano y sostenible","1.1.6.1.4"," Estrategias de Salud pública con garantía de derechos","Disminuir a 22,64 nacidos vivos la tasa de fecundidad en mujeres de 10 a 19 años por cada 1.000 mujeres de 10 a 19 años.","Garantizar condiciones que incidan en el ejercicio pleno y autónomo de losderechos sexuales y reproductivos","Monitoreo a la Estrategia escolar basada en los lineamientos COMPES 147 enfocado a escuelas rurales",4,"Numero de monitoreos",1,1,1,1,{"$f":"N18+O18+P18+Q18","v":4},"PROMOCIÓN DE LA SALUD","PLAN DE INTERVENCIONES COLECTIVAS","2.3.5.1.2.00","SGP-SALUD PUBLICA",3000000,"SECRETARIA DE SALUD","SECRETARIA DE SALUD","GLORIA PATRICIA GIL BLANDON"]
["1.1.1.5 Dimensión sexualidad derechos sexuales y reproductivos","1.1.6","Salud pública con calidad, garantía para el desarrollo humano y sostenible","Prevención y atención integral en salud sexual y reproductiva (SSR) desde un enfoque de derechos","1.1.6.1","Salud pública con calidad, garantía para el desarrollo humano y sostenible","1.1.6.1.4"," Estrategias de Salud pública con garantía de derechos","Disminuir a 22,64 nacidos vivos la tasa de fecundidad en mujeres de 10 a 19 años por cada 1.000 mujeres de 10 a 19 años.","Garantizar condiciones que incidan en el ejercicio pleno y autónomo de losderechos sexuales y reproductivos","Talleres de prevención y atención en salud sexual y reproductiva en articulación con las juntas de acción comunal en los centros poblados",8,"Numero de talleres",2,2,2,2,8,"PROMOCIÓN DE LA SALUD","PLAN DE INTERVENCIONES COLECTIVAS","2.3.5.1.2.00","SGP-SALUD PUBLICA",13000000,"SECRETARIA DE SALUD","SECRETARIA DE SALUD","GLORIA PATRICIA GIL BLANDON"]
["1.1.1.6 Dimensión vida saludable y enfermedades transmisibles","1.1.6","Salud pública con calidad, garantía para el desarrollo humano y sostenible","Enfermedades inmunoprevenibles ","1.1.6.1","Salud pública con calidad, garantía para el desarrollo humano y sostenible","1.1.6.1.1"," Estrategias de Salud pública con garantía de derechos","Aumentar al 95% la cobertura administrativa de vacunación con DPT, tercera dosis en menores de un año.","Garantizar el disfrute de una vida sana promoviendo modos,condiciones y estilos de vida saludables","Apoyar la accesibilidad a la vacunación mediante la celebración de tres 4 jornadas de intensificación de vacunación en el área urbana y rural  del municipio",4,"Jornadas",1,1,1,1,4,"PROMOCIÓN DE LA SALUD","PLAN DE INTERVENCIONES COLECTIVAS","2.3.5.1.2.00","SGP-SALUD PUBLICA",15000000,"SECRETARIA DE SALUD","SECRETARIA DE SALUD","GLORIA PATRICIA GIL BLANDON"]
["1.1.1.6 Dimensión vida saludable y enfermedades transmisibles","1.1.6","Salud pública con calidad, garantía para el desarrollo humano y sostenible","Enfermedades inmunoprevenibles ","1.1.6.1","Salud pública con calidad, garantía para el desarrollo humano y sostenible","1.1.6.1.1"," Estrategias de Salud pública con garantía de derechos","Aumentar al 95% la cobertura administrativa de vacunación con DPT, tercera dosis en menores de un año.","Garantizar el disfrute de una vida sana promoviendo modos,condiciones y estilos de vida saludables","Implementación de monitoreos rapidos de vacunación",2,"Numero de monitoreos",1,0,0,1,{"$f":"N21+O21+P21+Q21","v":2},"PROMOCIÓN DE LA SALUD","PLAN DE INTERVENCIONES COLECTIVAS","2.3.5.1.2.00","SGP-SALUD PUBLICA",0,"SECRETARIA DE SALUD","SECRETARIA DE SALUD","GLORIA PATRICIA GIL BLANDON"]
["1.1.1.6 Dimensión vida saludable y enfermedades transmisibles","1.1.6","Salud pública con calidad, garantía para el desarrollo humano y sostenible","Enfermedades Emergentes, Re - emergentes y desatendidas -  trasmitidas por contacto directo o vía aérea","1.1.6.1","Salud pública con calidad, garantía para el desarrollo humano y sostenible","1.1.6.1.2"," Estrategias de Salud pública con garantía de derechos","Disminuir a 9,19 la tasa de incidencia por tuberculosis por cada 100.000 habitantes.","Garantizar el disfrute de una vida sana promoviendo modos,condiciones y estilos de vida saludables","Realizar busquedas activas de pacientes sintomaticos respiratorios  y posibles contactos de pacientes infectados con TB del centro carcelario de Sonsón, a cargo de enfermera jefe con experiencia en el área",4,"Numero de tamizajes",1,1,1,1,4,"PROMOCIÓN DE LA SALUD","PLAN DE INTERVENCIONES COLECTIVAS","2.3.5.1.2.00","SGP-SALUD PUBLICA",1000000,"SECRETARIA DE SALUD","SECRETARIA DE SALUD","GLORIA PATRICIA GIL BLANDON"]
["1.1.1.6 Dimensión vida saludable y enfermedades transmisibles","1.1.6","Salud pública con calidad, garantía para el desarrollo humano y sostenible","Enfermedades endemo-epidemicas.","1.1.6.1","Salud pública con calidad, garantía para el desarrollo humano y sostenible","1.1.6.1"," Estrategias de Salud pública con garantía de derechos","A 2021, se logra un avance progresivo y sostenido en la implementación de planes regionales o locales para la prevención y la contención de los patógenos emergentes y re-emergentes de alta transmisibilidad y potencial epidémico en el 100% de las entidades territoriales.","Garantizar el disfrute de una vida sana promoviendo modos,condiciones y estilos de vida saludables","Implementación y desarrollo progresivo de planes y programas territoriales de promoción y prevención de las enfermedades transmitidas por agua, suelo y alimentos mediante jornadas de reentrenamiento y vigilancia en el area rural",4,"Numero de jornadas",1,1,1,1,4,"PROMOCIÓN DE LA SALUD","PLAN DE INTERVENCIONES COLECTIVAS","2.3.5.1.2.00","SGP-SALUD PUBLICA",2000000,"SECRETARIA DE SALUD","SECRETARIA DE SALUD","GLORIA PATRICIA GIL BLANDON"]
["1.1.1.6 Dimensión vida saludable y enfermedades transmisibles","1.1.6","Salud pública con calidad, garantía para el desarrollo humano y sostenible","Enfermedades endemo-epidemicas.","1.1.6.1","Salud pública con calidad, garantía para el desarrollo humano y sostenible","1.1.6.1"," Estrategias de Salud pública con garantía de derechos","A 2021, se logra un avance progresivo y sostenido en la implementación de planes regionales o locales para la prevención y la contención de los patógenos emergentes y re-emergentes de alta transmisibilidad y potencial epidémico en el 100% de las entidades territoriales.","Garantizar el disfrute de una vida sana promoviendo modos,condiciones y estilos de vida saludables","JORNADAS DE DESPARSITACIÓN ANTIHELMÍNTICA EN LOS CENTROS POBLADOS",8,"Jornadas",2,2,2,2,8,"PROMOCIÓN DE LA SALUD","PLAN DE INTERVENCIONES COLECTIVAS","2.3.5.1.2.00","SGP-SALUD PUBLICA",4000000,"SECRETARIA DE SALUD","SECRETARIA DE SALUD","GLORIA PATRICIA GIL BLANDON"]
["1.1.1.6 Dimensión vida saludable y enfermedades transmisibles","1.1.6","Salud pública con calidad, garantía para el desarrollo humano y sostenible","Enfermedades Emergentes, Re - emergentes y desatendidas -  trasmitidas por contacto directo o vía aérea","1.1.6.1","Salud pública con calidad, garantía para el desarrollo humano y sostenible","1.1.6.1"," Estrategias de Salud pública con garantía de derechos","Alcanzar el 95% o mas de cobertura en todos los biologicos que hacen parte del esquema nacional, en las poblaciones objeto del programa. ","Garantizar el disfrute de una vida sana promoviendo modos,condiciones y estilos de vida saludables","AIEPI COMUNIITARIO, aplicar 1000 visitas domiciliarias rurales en los centros poblados del municipio",500,"Numero de visitas",125,125,125,125,{"$f":"N25+O25+P25+Q25","v":500},"PROMOCIÓN DE LA SALUD","PLAN DE INTERVENCIONES COLECTIVAS","2.3.5.1.2.00","SGP-SALUD PUBLICA",2500000,"SECRETARIA DE SALUD","SECRETARIA DE SALUD","GLORIA PATRICIA GIL BLANDON"]
["1.1.1.6 Dimensión vida saludable y enfermedades transmisibles","1.1.6","Salud pública con calidad, garantía para el desarrollo humano y sostenible","Enfermedades Emergentes, Re - emergentes y desatendidas -  trasmitidas por contacto directo o vía aérea","1.1.6.1","Salud pública con calidad, garantía para el desarrollo humano y sostenible","1.1.6.1"," Estrategias de Salud pública con garantía de derechos","Alcanzar el 95% o mas de cobertura en todos los biologicos que hacen parte del esquema nacional, en las poblaciones objeto del programa. ","Garantizar el disfrute de una vida sana promoviendo modos,condiciones y estilos de vida saludables","Estrategias de comunicación y promoción de vida saludable y enfermedades trasmisibles",1,"Numero de estrategias",1,0,0,0,1,"PROMOCIÓN DE LA SALUD","PLAN DE INTERVENCIONES COLECTIVAS","2.3.5.1.2.00","SGP-SALUD PUBLICA",3000000,"SECRETARIA DE SALUD","SECRETARIA DE SALUD","GLORIA PATRICIA GIL BLANDON"]
["1.1.1.6 Dimensión salud ambiental","1.1.6","Salud pública con calidad, garantía para el desarrollo humano y sostenible","Habitat saludable","1.1.6.1","Salud pública con calidad, garantía para el desarrollo humano y sostenible","1.1.6.1"," Estrategias de Salud pública con garantía de derechos","A 2021 disminuir la proporción de población con viviendas y servicios inadecuados, medidos según el índice de Necesidades Básicas Insatisfechas NBI","Reducir el número de eventos de enfermedades y brotes producidos por el agua y el inadecuado manejo de residuos","Estrategia de articulacion Institucional e intersectorial  para el adecuado manejo de agroquimicos y los respectivos residuos  en articulacion con SARYMA y TAS",1,"Numero d e estrategias",1,0,0,0,1,"PROMOCIÓN DE LA SALUD","PLAN DE INTERVENCIONES COLECTIVAS","2.3.5.1.2.00","SGP-SALUD PUBLICA",0,"SECRETARIA DE SALUD","SECRETARIA DE SALUD","GLORIA PATRICIA GIL BLANDON"]
["1.1.1.6 Dimensión salud ambiental","1.1.6","Salud pública con calidad, garantía para el desarrollo humano y sostenible","Habitat saludable","1.1.6.1","Salud pública con calidad, garantía para el desarrollo humano y sostenible","1.1.6.1"," Estrategias de Salud pública con garantía de derechos","A 2021 disminuir la proporción de población con viviendas y servicios inadecuados, medidos según el índice de Necesidades Básicas Insatisfechas NBI","Reducir el número de eventos de enfermedades y brotes producidos por el agua y el inadecuado manejo de residuos","Estrategias de Comunicación y publicidad para promioción de entornos saludables",1,"Numero d e estrategias",1,0,0,0,1,"PROMOCIÓN DE LA SALUD","PLAN DE INTERVENCIONES COLECTIVAS","2.3.5.1.2.00","SGP-SALUD PUBLICA",3000000,"SECRETARIA DE SALUD","SECRETARIA DE SALUD","GLORIA PATRICIA GIL BLANDON"]
["1.1.1.6 Dimensión salud ambiental","1.1.6","Salud pública con calidad, garantía para el desarrollo humano y sostenible","Habitat saludable","1.1.6.1","Salud pública con calidad, garantía para el desarrollo humano y sostenible","1.1.6.1"," Estrategias de Salud pública con garantía de derechos","A 2021 disminuir la proporción de población con viviendas y servicios inadecuados, medidos según el índice de Necesidades Básicas Insatisfechas NBI","Reducir el número de eventos de enfermedades y brotes producidos por el agua y el inadecuado manejo de residuos","Jornadas de Educación y comunicación para la promoción de Entornos saludables",8,"Jornadas",2,2,2,2,{"$f":"N29+O29+P29+Q29","v":8},"PROMOCIÓN DE LA SALUD","PLAN DE INTERVENCIONES COLECTIVAS","2.3.5.1.2.00","SGP-SALUD PUBLICA",8400000,"SECRETARIA DE SALUD","SECRETARIA DE SALUD","GLORIA PATRICIA GIL BLANDON"]
["1.1.1.7 Dimensión salud pública en emergencias y desastres","1.1.6","Salud pública con calidad, garantía para el desarrollo humano y sostenible","Respuesta en salud ante situaciones de urgencia, emergencias  en salud publica y desastres.","1.1.6.1","Salud pública con calidad, garantía para el desarrollo humano y sostenible","1.1.6.1"," Estrategias de Salud pública con garantía de derechos","A 2021, se logra la formulación y socialización del Plan Nacional Sectorial de Gestión Integral del Riesgo de Desastres articulado intersectorialmente a los demás sectores estatales","Generar espacios de conocimiento, planificación, atención, seguimiento y evaluación sobre el riesgo de desastres (actuales y futuros)","Realizar diagnóstico del Indíce de Seguridad Hospitalaria ante el riesgo de desastres en el marco de la estrategia Hospitales Seguros de la OMS",1,"Numero de diagnosticos",0,1,0,0,1,"PROMOCIÓN DE LA SALUD","PLAN DE INTERVENCIONES COLECTIVAS","2.3.5.1.2.00","SGP-SALUD PUBLICA",2000000,"SECRETARIA DE SALUD","SECRETARIA DE SALUD","GLORIA PATRICIA GIL BLANDON"]
["1.1.1.7 Dimensión salud pública en emergencias y desastres","1.1.6","Salud pública con calidad, garantía para el desarrollo humano y sostenible","Respuesta en salud ante situaciones de urgencia, emergencias  en salud publica y desastres.","1.1.6.1","Salud pública con calidad, garantía para el desarrollo humano y sostenible","1.1.6.1"," Estrategias de Salud pública con garantía de derechos","A 2021, se logra la formulación y socialización del Plan Nacional Sectorial de Gestión Integral del Riesgo de Desastres articulado intersectorialmente a los demás sectores estatales","Generar espacios de conocimiento, planificación, atención, seguimiento y evaluación sobre el riesgo de desastres (actuales y futuros)","Realizar simulacro municipal de evacuación en articulación con el comité municipal de gestion de riesgo y de desastres",3,"Numero de simulacros",1,1,1,0,3,"PROMOCIÓN DE LA SALUD","PLAN DE INTERVENCIONES COLECTIVAS","2.3.5.1.2.00","SGP-SALUD PUBLICA",4000000,"SECRETARIA DE SALUD","SECRETARIA DE SALUD","GLORIA PATRICIA GIL BLANDON"]
["1.1.1.8 Dimensión salud y ámbito laboral","1.1.6","Salud pública con calidad, garantía para el desarrollo humano y sostenible","Seguridad y Salud en el Trabajo","1.1.6.1","Salud pública con calidad, garantía para el desarrollo humano y sostenible","2.1.4.1.1"," Estrategias de Salud pública con garantía de derechos","Articulación interinstitucional e intersectorial para la caracterización,  identificación e intervención  de la población en situación informalidad laboral e inadecuadas condiciones laborales","Promover el bienestar y la protección de la salud de los trabajadores","Caracterización poblacion laboral Informal zona urbana y rural",1,"Numero de informes",1,0,0,0,{"$f":"N32+O32+P32+Q32","v":1},"PROMOCIÓN DE LA SALUD","PLAN DE INTERVENCIONES COLECTIVAS","2.3.5.1.2.00","SGP-SALUD PUBLICA",3000000,"SECRETARIA DE SALUD","SECRETARIA DE SALUD","GLORIA PATRICIA GIL BLANDON"]
["1.1.1.8 Dimensión salud y ámbito laboral","1.1.6","Salud pública con calidad, garantía para el desarrollo humano y sostenible","Seguridad y Salud en el Trabajo","1.1.6.1","Salud pública con calidad, garantía para el desarrollo humano y sostenible","2.1.4.1.1"," Estrategias de Salud pública con garantía de derechos","Articulación interinstitucional e intersectorial para la caracterización,  identificación e intervención  de la población en situación informalidad laboral e inadecuadas condiciones laborales","Promover el bienestar y la protección de la salud de los trabajadores","Implementación de estrategia inrtersectorial e interistitucional para la prevención de accidentes y enfermedades laborales",3,"Numero de estrategias",0,1,1,1,3,"PROMOCIÓN DE LA SALUD","PLAN DE INTERVENCIONES COLECTIVAS","2.3.5.1.2.00","SGP-SALUD PUBLICA",5000000,"SECRETARIA DE SALUD","SECRETARIA DE SALUD","GLORIA PATRICIA GIL BLANDON"]
["1.1.1.9 Dimensión transversal gestión diferencial de poblaciones vulnerables","1.1.6","Poblaciòn vulnerable con goce efectivo del derecho a la salud.","Desarrollo integral de las niñas, niños y adolescentes","1.1.7.1","Poblaciòn vulnerable con goce efectivo del derecho a la salud.","1.1.7.1"," Estrategias de Salud pública con garantía de derechos","A 2015 se habrá implementado en todo el territorio nacional el marco estratégico y operativo de los Primeros mil días de vida, desde la gestación hasta cumplir los dos años de vida.","Mejorar el goce efectivo del derecho a la salud de las poblaciones vulnerables","Implementar estrategis  AIEPI COMUNITARIO RURAL : Realizar concertación con líderes comunitarios y comunidad en general para hacer educación en las 18 prácticas claves de AIEPI comunitario de casa en los Corregimiento Rio Verde de los Montes, Corregimiento Rio Verde de Los Henaos, Corregimiento Los Medios, Corregimiento Los Potreros, Corregimiento Alto de Sabanas, Corregimiento Jerusalén, Sector Las Cruces y Zona fría)\n• Aplicar 62  visitas domiciliarias por territorio priorizado\n• Registrar visita domiciliaria de AIEPI\n• Semaforizar el hogar según el estado encontrado\n• Realizar prácticas de control de vectores en la zona del magdalena \n• Hacer búsqueda activa de gestantes y susceptibles de vacunación \n.Hacér búsqueda de sintomáticos respiratorios y de piel, registrar\n• Realizar demanda inducida a los programas de promoción y prevención\n• Tomar registro fotográfico",1,"Numero de estrategias",0,1,0,0,1,"PROMOCIÓN DE LA SALUD","PLAN DE INTERVENCIONES COLECTIVAS","2.3.5.1.2.00","SGP-SALUD PUBLICA",18656943.399999999,"SECRETARIA DE SALUD","SECRETARIA DE SALUD","GLORIA PATRICIA GIL BLANDON"]
["1.1.1.10 Dimensión fortalecimiento de la autoridad sanitaria para la gestión en salud","1.1.5","Salud pública con calidad, garantía para el desarrollo humano y sostenible","Fortalecimiento de la autoridad sanitaria","1.1.6.1","Salud pública con calidad, garantía para el desarrollo humano y sostenible","1.1.7.1"," Estrategias de Fortalecimiento de la autoridad sanitaria para la gestión integral de la salud","Garantizar el aseguramiento y la prestación de servicios en Salud en toda la población, de acuerdo a la legislación vigente.","Garantízar el aseguramiento y provisión adecuada de servicios de salud","Administración, vigilancia y control de la salud publica del municipio",4,"Personas profesionales de la salud",4,0,0,0,4,"PROMOCIÓN DE LA SALUD","PLAN DE INTERVENCIONES COLECTIVAS","2.3.5.1.2.00","SGP-SALUD PUBLICA",130371295.59999999,"SECRETARIA DE SALUD","SECRETARIA DE SALUD","GLORIA PATRICIA GIL BLANDON"]
["1.1.1.10 Dimensión fortalecimiento de la autoridad sanitaria para la gestión en salud","1.1.5","Sonsón progresa por el aseguramiento y acceso universal en salud","Fortalecimiento de la autoridad sanitaria","1.1.5.1","Sonsón progresa por el aseguramiento y acceso universal en salud","1.1.5.1.1"," Estrategias de Fortalecimiento de la autoridad sanitaria para la gestión integral de la salud","Aumentar al 90% la cobertura de afiliación al Sistema General de Seguridad Social en Salud","Garantízar el aseguramiento y provisión adecuada de servicios de salud","Asegurar la afiliación, acceso y prestacion de servicios de salud del 100% de la población del municipio bajo el marco de la normatividad vigente",1,"Cobertura",0.25,0.25,0.25,0.25,1,"PROMOCIÓN DE LA SALUD-ASEGURAMIENTO","GSP","2.3.5.1.2.00","SGP ASEGURAMIENTO-FOSYGA-COLJUEGOS-RENTAS CEDIDAS-FONPET",20843384547,"SECRETARIA DE SALUD","SECRETARIA DE SALUD","GLORIA PATRICIA GIL BLANDON"]
["1.1.1.10 Dimensión fortalecimiento de la autoridad sanitaria para la gestión en salud","1.1.5","Sonsón progresa por el aseguramiento y acceso universal en salud","Fortalecimiento de la autoridad sanitaria","1.1.5.1","Sonsón progresa por el aseguramiento y acceso universal en salud","1.1.5.1.1"," Estrategias de Fortalecimiento de la autoridad sanitaria para la gestión integral de la salud","Garantizar el aseguramiento y la prestación de servicios en Salud en toda la población, de acuerdo a la legislación vigente.","Garantízar el aseguramiento y provisión adecuada de servicios de salud","administración, vigilancia y control del aseguramiento y los diferentes actores, de acuerdo a la normatividad vigente y sus diferentes sistemas de información",3,"Personas",3,0,0,0,3,"PROMOCIÓN DE LA SALUD-ASEGURAMIENTO","GSP","2.3.5.1.2.00","COLJUEGOS 25% funcionamiento Y esfuerzo propio",64423719.5,"SECRETARIA DE SALUD","SECRETARIA DE SALUD","GLORIA PATRICIA GIL BLANDON"]
["1.1.1.10 Dimensión fortalecimiento de la autoridad sanitaria para la gestión en salud","1.1.5","Sonsón progresa por el aseguramiento y acceso universal en salud","Fortalecimiento de la autoridad sanitaria","1.1.5.1","Sonsón progresa por el aseguramiento y acceso universal en salud","1.1.5.1.1"," Estrategias de Fortalecimiento de la autoridad sanitaria para la gestión integral de la salud","Atender en el primer nivel de complejidad al 100% de las personas no afiliadas al Sistema General de Seguridad Social en Salud.","Garantízar el aseguramiento y provisión adecuada de servicios de salud","Garantizar la atención en salud en el primer nivel de complejidad a la Población Pobre No Afiliada (PPNA)",1,"Porcentaje",0.25,0.25,0.25,0.25,{"$f":"N38+O38+P38+Q38","v":1},"PROMOCIÓN DE LA SALUD-ASEGURAMIENTO","GSP","2.3.5.1.2.00","SGP APORTES PATRONALES",530367676,"SECRETARIA DE SALUD","SECRETARIA DE SALUD","GLORIA PATRICIA GIL BLANDON"]